[Event "Early-Titled-Tuesday-Blitz-September-26-2023"]
[Site "Chess.com"]
[Date "2023.09.26"]
[Round "1"]
[White "kleopl"]
[Black "Nemegejas"]
[Result "0-1"]
[WhiteElo "2473"]
[BlackElo "2801"]
[TimeControl "180+1"]
[EndTime "8:07:37 PDT"]
[Termination "Nemegejas won on time"]

1. e4 {[%clk 0:03:00.9]} 1... g6 {[%clk 0:02:47.3]} 2. d4 {[%clk 0:03:00]} 2...
Bg7 {[%clk 0:02:45.6]} 3. Nc3 {[%clk 0:02:59.4]} 3... d6 {[%clk 0:02:45.3]} 4.
Be3 {[%clk 0:02:58.5]} 4... c6 {[%clk 0:02:44.2]} 5. Qd2 {[%clk 0:02:56.8]} 5...
b5 {[%clk 0:02:39.9]} 6. O-O-O {[%clk 0:02:56.2]} 6... Nd7 {[%clk 0:02:35.2]} 7.
Kb1 {[%clk 0:02:55]} 7... Nb6 {[%clk 0:02:27.5]} 8. Bd3 {[%clk 0:02:52]} 8... a5
{[%clk 0:02:19.4]} 9. f3 {[%clk 0:02:48.3]} 9... Ba6 {[%clk 0:02:18.6]} 10. Nce2
{[%clk 0:02:45.2]} 10... b4 {[%clk 0:02:17.3]} 11. Nc1 {[%clk 0:02:43]} 11...
Nc4 {[%clk 0:01:59.3]} 12. Bxc4 {[%clk 0:02:42]} 12... Bxc4 {[%clk 0:01:58.2]}
13. g4 {[%clk 0:02:36.3]} 13... Qb6 {[%clk 0:01:50.1]} 14. h4 {[%clk 0:02:33]}
14... h5 {[%clk 0:01:47.8]} 15. g5 {[%clk 0:02:30.9]} 15... a4 {[%clk
0:01:40.6]} 16. b3 {[%clk 0:01:58.9]} 16... axb3 {[%clk 0:01:39.1]} 17. cxb3
{[%clk 0:01:59.8]} 17... Ba6 {[%clk 0:01:37.6]} 18. Nh3 {[%clk 0:01:54.8]} 18...
Qb7 {[%clk 0:01:28.5]} 19. Nf4 {[%clk 0:01:52.2]} 19... e6 {[%clk 0:01:28.7]}
20. Nfd3 {[%clk 0:01:50.9]} 20... Rb8 {[%clk 0:01:21.3]} 21. e5 {[%clk
0:01:48.8]} 21... d5 {[%clk 0:01:01.4]} 22. Nc5 {[%clk 0:01:43]} 22... Qa8
{[%clk 0:01:01.6]} 23. N1d3 {[%clk 0:01:37.1]} 23... Bxd3+ {[%clk 0:00:59.8]}
24. Qxd3 {[%clk 0:01:35.1]} 24... Ne7 {[%clk 0:00:59.5]} 25. Bd2 {[%clk
0:01:20.3]} 25... Nf5 {[%clk 0:00:57.8]} 26. f4 {[%clk 0:01:06.3]} 26... Bf8
{[%clk 0:00:56.4]} 27. Rc1 {[%clk 0:01:02.9]} 27... Bxc5 {[%clk 0:00:53.3]} 28.
Rxc5 {[%clk 0:01:02.6]} 28... O-O {[%clk 0:00:53.2]} 29. Be3 {[%clk 0:00:53.1]}
29... Rb6 {[%clk 0:00:48]} 30. Bf2 {[%clk 0:00:39.8]} 30... Ra6 {[%clk
0:00:48.1]} 31. Qd2 {[%clk 0:00:38.4]} 31... Qa7 {[%clk 0:00:45]} 32. Rhc1
{[%clk 0:00:38.2]} 32... Ra8 {[%clk 0:00:44.3]} 33. R1c2 {[%clk 0:00:34.9]}
33... Qb7 {[%clk 0:00:37.4]} 34. Qc1 {[%clk 0:00:29.6]} 34... Ne7 {[%clk
0:00:32.4]} 35. Qd2 {[%clk 0:00:25.4]} 35... Ra3 {[%clk 0:00:32.4]} 36. Be1
{[%clk 0:00:16.8]} 36... Qa6 {[%clk 0:00:23.6]} 37. Qe2 {[%clk 0:00:12.2]} 37...
Rxb3+ {[%clk 0:00:22.4]} 38. Kc1 {[%clk 0:00:10.5]} 38... Qa3+ {[%clk
0:00:22.3]} 39. Kd2 {[%clk 0:00:08.4]} 39... Rh3 {[%clk 0:00:15.7]} 40. Bf2
{[%clk 0:00:05]} 40... Nf5 {[%clk 0:00:16]} 41. Ke1 {[%clk 0:00:02.7]} 41...
Nxh4 {[%clk 0:00:13.9]} 42. Bxh4 {[%clk 0:00:02.2]} 42... Rxh4 {[%clk
0:00:14.8]} 43. Kd2 {[%clk 0:00:01.1]} 43... Qg3 {[%clk 0:00:10.2]} 0-1

[Event "Early-Titled-Tuesday-Blitz-September-26-2023"]
[Site "Chess.com"]
[Date "2023.09.26"]
[Round "1"]
[White "AleksanderHnydiuk"]
[Black "BlueWizzard"]
[Result "1-0"]
[WhiteElo "2525"]
[BlackElo "2916"]
[TimeControl "180+1"]
[EndTime "8:07:39 PDT"]
[Termination "AleksanderHnydiuk won by resignation"]

1. e4 {[%clk 0:02:56]} 1... Nc6 {[%clk 0:02:59.4]} 2. Nf3 {[%clk 0:02:55.4]}
2... d6 {[%clk 0:02:59.9]} 3. d4 {[%clk 0:02:55.2]} 3... Bg4 {[%clk 0:03:00.5]}
4. Be3 {[%clk 0:02:53.3]} 4... e6 {[%clk 0:02:59.6]} 5. h3 {[%clk 0:02:52.4]}
5... Bh5 {[%clk 0:02:59.6]} 6. Nc3 {[%clk 0:02:51.6]} 6... Nf6 {[%clk
0:02:58.5]} 7. d5 {[%clk 0:02:48.4]} 7... exd5 {[%clk 0:02:49.9]} 8. exd5 {[%clk
0:02:48.4]} 8... Nb8 {[%clk 0:02:49.7]} 9. Be2 {[%clk 0:02:22.6]} 9... Be7
{[%clk 0:02:45.6]} 10. Nd4 {[%clk 0:02:22]} 10... Bg6 {[%clk 0:02:45.2]} 11. Qd2
{[%clk 0:02:06.8]} 11... c5 {[%clk 0:02:42.5]} 12. dxc6 {[%clk 0:02:04]} 12...
Nxc6 {[%clk 0:02:40.5]} 13. O-O-O {[%clk 0:02:01.6]} 13... O-O {[%clk
0:02:37.7]} 14. h4 {[%clk 0:01:48.9]} 14... h5 {[%clk 0:02:12.7]} 15. f3 {[%clk
0:01:30.6]} 15... d5 {[%clk 0:02:09.7]} 16. Bd3 {[%clk 0:01:15.7]} 16... Ne5
{[%clk 0:02:05.7]} 17. Bxg6 {[%clk 0:01:13.5]} 17... Nxg6 {[%clk 0:01:59.5]} 18.
Nf5 {[%clk 0:01:11.5]} 18... Bb4 {[%clk 0:01:46]} 19. a3 {[%clk 0:01:04.3]}
19... Ba5 {[%clk 0:01:45.3]} 20. Bd4 {[%clk 0:01:02.3]} 20... Rc8 {[%clk
0:01:45]} 21. Qg5 {[%clk 0:01:00]} 21... Rc6 {[%clk 0:01:24.3]} 22. g4 {[%clk
0:00:58.4]} 22... Bc7 {[%clk 0:01:12.4]} 23. Bxf6 {[%clk 0:00:33]} 23... Rxf6
{[%clk 0:01:10.4]} 24. Nxd5 {[%clk 0:00:30.3]} 24... Qxd5 {[%clk 0:01:06.8]} 25.
Rxd5 {[%clk 0:00:26]} 25... Bf4+ {[%clk 0:01:07.5]} 26. Kb1 {[%clk 0:00:22.4]}
26... Bxg5 {[%clk 0:01:06.8]} 27. hxg5 {[%clk 0:00:23.3]} 27... Re6 {[%clk
0:01:07.1]} 28. gxh5 {[%clk 0:00:19.1]} 28... Nf4 {[%clk 0:01:07.2]} 29. Rd7
{[%clk 0:00:18.1]} 29... Re5 {[%clk 0:01:02.2]} 30. Ne7+ {[%clk 0:00:16.5]}
30... Kh7 {[%clk 0:01:02.9]} 31. g6+ {[%clk 0:00:16.1]} 31... Kh6 {[%clk
0:01:02.8]} 32. gxf7 {[%clk 0:00:15.3]} 32... Rxh5 {[%clk 0:00:56]} 33. Nf5+
{[%clk 0:00:09.4]} 33... Kg6 {[%clk 0:00:49.9]} 34. Rxh5 {[%clk 0:00:09.2]}
34... Nxh5 {[%clk 0:00:49.1]} 35. Nd6 {[%clk 0:00:09.5]} 35... Kg5 {[%clk
0:00:43.8]} 36. Re7 {[%clk 0:00:08.7]} 36... Kf4 {[%clk 0:00:35.5]} 37. Re8
{[%clk 0:00:07.8]} 37... Rxf7 {[%clk 0:00:36]} 38. Nxf7 {[%clk 0:00:07.4]} 38...
Kxf3 {[%clk 0:00:36.5]} 39. Re5 {[%clk 0:00:06.7]} 39... Ng3 {[%clk 0:00:35.1]}
40. Rg5 {[%clk 0:00:06.2]} 40... Ne4 {[%clk 0:00:34.6]} 41. Rxg7 {[%clk
0:00:05.6]} 41... Kf4 {[%clk 0:00:35.5]} 42. Nd8 {[%clk 0:00:05.1]} 42... Nd2+
{[%clk 0:00:34.8]} 43. Ka2 {[%clk 0:00:04.7]} 43... Nc4 {[%clk 0:00:35.7]} 44.
Rxb7 {[%clk 0:00:04.3]} 44... Ke5 {[%clk 0:00:36.5]} 45. Rxa7 {[%clk 0:00:04.3]}
45... Kd6 {[%clk 0:00:36.7]} 46. Ra4 {[%clk 0:00:04.3]} 46... Ne3 {[%clk
0:00:36.6]} 47. Rb4 {[%clk 0:00:04.7]} 47... Kc5 {[%clk 0:00:37]} 48. Ne6+
{[%clk 0:00:04.6]} 48... Kd6 {[%clk 0:00:36.3]} 49. Nf4 {[%clk 0:00:05]} 49...
Nxc2 {[%clk 0:00:36.2]} 50. Nd3 {[%clk 0:00:05.2]} 50... Kd5 {[%clk 0:00:35.4]}
51. Rb3 {[%clk 0:00:05.2]} 51... Nd4 {[%clk 0:00:35.2]} 52. Nb4+ {[%clk
0:00:05.3]} 52... Kc5 {[%clk 0:00:34.8]} 53. Rc3+ {[%clk 0:00:05.5]} 53... Kb5
{[%clk 0:00:35.1]} 54. Kb1 {[%clk 0:00:05.8]} 54... Ka4 {[%clk 0:00:35.2]} 55.
Nd3 {[%clk 0:00:06]} 55... Nb5 {[%clk 0:00:34]} 56. Rc4+ {[%clk 0:00:05.8]}
56... Ka5 {[%clk 0:00:34.4]} 57. Rc5 {[%clk 0:00:06.2]} 57... Ka4 {[%clk
0:00:34.3]} 58. Rxb5 {[%clk 0:00:06.5]} 58... Kxb5 {[%clk 0:00:35.2]} 59. Kc2
{[%clk 0:00:07]} 59... Ka4 {[%clk 0:00:36.1]} 60. Kc3 {[%clk 0:00:07.3]} 60...
Kb5 {[%clk 0:00:37]} 61. Kb3 {[%clk 0:00:07.7]} 61... Ka5 {[%clk 0:00:37.5]} 62.
a4 {[%clk 0:00:08.2]} 62... Kb6 {[%clk 0:00:37.9]} 63. Kb4 {[%clk 0:00:08.7]}
63... Ka6 {[%clk 0:00:38.4]} 64. a5 {[%clk 0:00:09.3]} 1-0

[Event "Early-Titled-Tuesday-Blitz-September-26-2023"]
[Site "Chess.com"]
[Date "2023.09.26"]
[Round "1"]
[White "Korchmar_Vasiliy"]
[Black "Er_is_geen_hoop_meer"]
[Result "0-1"]
[WhiteElo "2701"]
[BlackElo "2435"]
[TimeControl "180+1"]
[EndTime "8:07:39 PDT"]
[Termination "Er_is_geen_hoop_meer won on time"]

1. e4 {[%clk 0:03:00.9]} 1... g6 {[%clk 0:02:59.8]} 2. d4 {[%clk 0:03:00.4]}
2... Bg7 {[%clk 0:02:59.9]} 3. Nf3 {[%clk 0:02:55.9]} 3... c6 {[%clk 0:02:53.5]}
4. Bd3 {[%clk 0:02:54.8]} 4... d5 {[%clk 0:02:50]} 5. e5 {[%clk 0:02:55.1]} 5...
Bg4 {[%clk 0:02:49.4]} 6. Nbd2 {[%clk 0:02:50]} 6... e6 {[%clk 0:02:47.3]} 7. h3
{[%clk 0:02:48.7]} 7... Bf5 {[%clk 0:02:47.7]} 8. Bxf5 {[%clk 0:02:45.9]} 8...
gxf5 {[%clk 0:02:48.2]} 9. O-O {[%clk 0:02:40.8]} 9... c5 {[%clk 0:02:47.8]} 10.
dxc5 {[%clk 0:02:38.7]} 10... Nd7 {[%clk 0:02:46.7]} 11. Nb3 {[%clk 0:02:15.7]}
11... a6 {[%clk 0:02:44.7]} 12. Bf4 {[%clk 0:01:53.3]} 12... Qc7 {[%clk
0:02:45.4]} 13. Rc1 {[%clk 0:01:47.8]} 13... Ne7 {[%clk 0:02:42.1]} 14. c4
{[%clk 0:01:47.6]} 14... dxc4 {[%clk 0:02:40.2]} 15. Rxc4 {[%clk 0:01:46.3]}
15... Ng6 {[%clk 0:02:40.3]} 16. Qd6 {[%clk 0:01:25.9]} 16... O-O-O {[%clk
0:02:36.9]} 17. c6 {[%clk 0:01:19.7]} 17... Qxd6 {[%clk 0:02:01.5]} 18. cxd7+
{[%clk 0:01:18.5]} 18... Kxd7 {[%clk 0:02:02.1]} 19. exd6 {[%clk 0:01:18.7]}
19... Rc8 {[%clk 0:02:00.9]} 20. Rb4 {[%clk 0:00:40.7]} 20... b5 {[%clk
0:01:57]} 21. a4 {[%clk 0:00:30.4]} 21... Rc4 {[%clk 0:01:47.1]} 22. Bd2 {[%clk
0:00:30]} 22... Rb8 {[%clk 0:01:35.7]} 23. axb5 {[%clk 0:00:21.3]} 23... Rxb4
{[%clk 0:01:33.9]} 24. Bxb4 {[%clk 0:00:20.7]} 24... Rxb5 {[%clk 0:01:34.5]} 25.
Nc5+ {[%clk 0:00:19.8]} 25... Kxd6 {[%clk 0:01:32.2]} 26. Nd3+ {[%clk
0:00:05.2]} 26... Kd5 {[%clk 0:01:31.1]} 27. Ba3 {[%clk 0:00:04.3]} 27... Kc4
{[%clk 0:01:30]} 28. Rc1+ {[%clk 0:00:04.4]} 28... Kxd3 {[%clk 0:01:29.4]} 29.
Rc7 {[%clk 0:00:03.5]} 29... Bxb2 {[%clk 0:01:26.8]} 30. Bxb2 {[%clk 0:00:03.6]}
30... Rxb2 {[%clk 0:01:27.5]} 31. Rxf7 {[%clk 0:00:04.2]} 31... a5 {[%clk
0:01:25.9]} 32. Rxh7 {[%clk 0:00:03.2]} 32... a4 {[%clk 0:01:25.5]} 33. Ra7
{[%clk 0:00:03.8]} 33... Rb4 {[%clk 0:01:25.4]} 34. g3 {[%clk 0:00:02.5]} 34...
e5 {[%clk 0:01:25.3]} 35. h4 {[%clk 0:00:02.6]} 35... e4 {[%clk 0:01:24.9]} 36.
Ng5 {[%clk 0:00:02.1]} 36... f4 {[%clk 0:01:23.8]} 37. gxf4 {[%clk 0:00:02]}
37... Nxf4 {[%clk 0:01:24.6]} 38. Kh2 {[%clk 0:00:01.8]} 38... Nd5 {[%clk
0:01:21.7]} 39. Kg3 {[%clk 0:00:01.2]} 39... Nc3 {[%clk 0:01:19.4]} 40. h5
{[%clk 0:00:01.5]} 40... Rb5 {[%clk 0:01:15.7]} 41. Kg4 {[%clk 0:00:02.1]} 41...
Nd1 {[%clk 0:01:14.6]} 42. h6 {[%clk 0:00:02.6]} 42... Nxf2+ {[%clk 0:01:14.7]}
43. Kh4 {[%clk 0:00:03]} 43... e3 {[%clk 0:01:14.9]} 44. h7 {[%clk 0:00:03.2]}
44... Rb8 {[%clk 0:01:14.8]} 45. Rd7+ {[%clk 0:00:02.3]} 45... Kc2 {[%clk
0:01:14]} 46. Rc7+ {[%clk 0:00:02.3]} 46... Kd1 {[%clk 0:01:13.6]} 47. Rd7+
{[%clk 0:00:02.5]} 47... Ke1 {[%clk 0:01:13.3]} 48. Rg7 {[%clk 0:00:02.6]} 48...
Rh8 {[%clk 0:01:11.9]} 49. Nf7 {[%clk 0:00:02.5]} 49... Rxh7+ {[%clk 0:01:12.1]}
50. Rxh7 {[%clk 0:00:03.1]} 50... e2 {[%clk 0:01:12.5]} 51. Ng5 {[%clk
0:00:03.1]} 51... Kd2 {[%clk 0:01:10.8]} 52. Rd7+ {[%clk 0:00:03.2]} 52... Kc3
{[%clk 0:01:09.7]} 53. Nf3 {[%clk 0:00:03.3]} 53... Nd3 {[%clk 0:01:09.4]} 54.
Rc7+ {[%clk 0:00:02.6]} 54... Kb3 {[%clk 0:01:09.3]} 55. Re7 {[%clk 0:00:02.8]}
55... Nc1 {[%clk 0:01:06.1]} 56. Re3+ {[%clk 0:00:02.3]} 56... Kb2 {[%clk
0:01:04.3]} 57. Re8 {[%clk 0:00:01.5]} 57... a3 {[%clk 0:01:04.1]} 58. Nd4
{[%clk 0:00:02]} 58... a2 {[%clk 0:01:03.1]} 59. Nxe2 {[%clk 0:00:02.4]} 59...
a1=Q {[%clk 0:01:02.5]} 60. Rb8+ {[%clk 0:00:02.7]} 60... Kc2 {[%clk 0:01:01.6]}
61. Rc8+ {[%clk 0:00:03.1]} 61... Kd2 {[%clk 0:01:01]} 62. Nxc1 {[%clk
0:00:03.2]} 62... Qf6+ {[%clk 0:01:00.4]} 63. Kg3 {[%clk 0:00:03.6]} 63... Qe5+
{[%clk 0:00:56.4]} 64. Kh4 {[%clk 0:00:03.6]} 64... Qf4+ {[%clk 0:00:55.9]} 65.
Kh3 {[%clk 0:00:03.5]} 65... Qf5+ {[%clk 0:00:56.6]} 66. Kh2 {[%clk 0:00:03.3]}
66... Qxc8 {[%clk 0:00:57.4]} 0-1

[Event "Early-Titled-Tuesday-Blitz-September-26-2023"]
[Site "Chess.com"]
[Date "2023.09.26"]
[Round "1"]
[White "Artemiki"]
[Black "deribas12345"]
[Result "0-1"]
[WhiteElo "2192"]
[BlackElo "2570"]
[TimeControl "180+1"]
[EndTime "8:07:39 PDT"]
[Termination "deribas12345 won on time"]

1. e4 {[%clk 0:02:56.7]} 1... c5 {[%clk 0:02:59.4]} 2. Nf3 {[%clk 0:02:56.5]}
2... d6 {[%clk 0:02:59.8]} 3. d4 {[%clk 0:02:55.4]} 3... cxd4 {[%clk 0:03:00.7]}
4. Nxd4 {[%clk 0:02:55.4]} 4... Nf6 {[%clk 0:03:01]} 5. Nc3 {[%clk 0:02:55.6]}
5... a6 {[%clk 0:03:01.2]} 6. Be3 {[%clk 0:02:55.5]} 6... e5 {[%clk 0:03:01]} 7.
Nf3 {[%clk 0:02:55.9]} 7... Be7 {[%clk 0:02:54.6]} 8. Bc4 {[%clk 0:02:56]} 8...
O-O {[%clk 0:02:54.3]} 9. O-O {[%clk 0:02:56.1]} 9... Nbd7 {[%clk 0:02:51.5]}
10. Nh4 {[%clk 0:02:48.9]} 10... b5 {[%clk 0:02:43.9]} 11. Bb3 {[%clk
0:02:35.8]} 11... Nc5 {[%clk 0:02:42.3]} 12. Nf5 {[%clk 0:02:06.5]} 12... Bxf5
{[%clk 0:02:39.8]} 13. exf5 {[%clk 0:02:06.4]} 13... Nxb3 {[%clk 0:02:39.9]} 14.
axb3 {[%clk 0:02:06.9]} 14... d5 {[%clk 0:02:37]} 15. Bg5 {[%clk 0:02:05.4]}
15... d4 {[%clk 0:02:30.2]} 16. Bxf6 {[%clk 0:02:05.5]} 16... Bxf6 {[%clk
0:02:27.2]} 17. Ne4 {[%clk 0:02:05.2]} 17... Be7 {[%clk 0:02:23.8]} 18. Qf3
{[%clk 0:01:56.6]} 18... f6 {[%clk 0:02:20.3]} 19. Rfd1 {[%clk 0:01:53.6]} 19...
Qc7 {[%clk 0:02:17.6]} 20. c3 {[%clk 0:01:52.9]} 20... Rfd8 {[%clk 0:02:14.9]}
21. Rd3 {[%clk 0:01:32.8]} 21... dxc3 {[%clk 0:02:00.4]} 22. bxc3 {[%clk
0:01:33.5]} 22... Kh8 {[%clk 0:01:34.8]} 23. Rad1 {[%clk 0:01:30.2]} 23... Rxd3
{[%clk 0:01:33.3]} 24. Rxd3 {[%clk 0:01:31.1]} 24... Rd8 {[%clk 0:01:31.9]} 25.
Qd1 {[%clk 0:01:30.2]} 25... Rxd3 {[%clk 0:01:21.6]} 26. Qxd3 {[%clk 0:01:31.1]}
26... g6 {[%clk 0:01:22.1]} 27. fxg6 {[%clk 0:01:26.3]} 27... hxg6 {[%clk
0:01:23]} 28. h4 {[%clk 0:01:06.2]} 28... Qd8 {[%clk 0:01:08.3]} 29. Qe2 {[%clk
0:00:28.8]} 29... Qd5 {[%clk 0:01:00.5]} 30. h5 {[%clk 0:00:25.7]} 30... g5
{[%clk 0:00:36.1]} 31. Ng3 {[%clk 0:00:20.1]} 31... Qxb3 {[%clk 0:00:34.8]} 32.
Qd3 {[%clk 0:00:20.3]} 32... b4 {[%clk 0:00:26.5]} 33. Nf5 {[%clk 0:00:11.7]}
33... Qxc3 {[%clk 0:00:25.9]} 34. Qd7 {[%clk 0:00:09.7]} 34... Qc1+ {[%clk
0:00:25.1]} 35. Kh2 {[%clk 0:00:09.3]} 35... Qf4+ {[%clk 0:00:26]} 36. Kg1
{[%clk 0:00:09.5]} 36... Qc1+ {[%clk 0:00:25.5]} 37. Kh2 {[%clk 0:00:09.4]}
37... Qf4+ {[%clk 0:00:24.7]} 38. Kh3 {[%clk 0:00:01.6]} 38... Bf8 {[%clk
0:00:08.4]} 0-1

[Event "Early-Titled-Tuesday-Blitz-September-26-2023"]
[Site "Chess.com"]
[Date "2023.09.26"]
[Round "1"]
[White "DarZay"]
[Black "Orest_Vovk"]
[Result "0-1"]
[WhiteElo "2220"]
[BlackElo "2584"]
[TimeControl "180+1"]
[EndTime "8:07:41 PDT"]
[Termination "Orest_Vovk won by resignation"]

1. e4 {[%clk 0:03:00.9]} 1... e6 {[%clk 0:02:59.6]} 2. d4 {[%clk 0:03:00.2]}
2... d5 {[%clk 0:02:59.6]} 3. Bd3 {[%clk 0:03:00.4]} 3... dxe4 {[%clk
0:02:59.6]} 4. Bxe4 {[%clk 0:03:00.7]} 4... Nf6 {[%clk 0:03:00.2]} 5. Bf3 {[%clk
0:02:59.4]} 5... Nbd7 {[%clk 0:02:55.9]} 6. Ne2 {[%clk 0:02:58.1]} 6... c5
{[%clk 0:02:56]} 7. c3 {[%clk 0:02:54.8]} 7... cxd4 {[%clk 0:02:55]} 8. cxd4
{[%clk 0:02:52.4]} 8... Qa5+ {[%clk 0:02:54]} 9. Bd2 {[%clk 0:02:50.5]} 9... Qb6
{[%clk 0:02:50.6]} 10. Qc2 {[%clk 0:02:43.6]} 10... Bd6 {[%clk 0:02:47]} 11. O-O
{[%clk 0:02:42.8]} 11... O-O {[%clk 0:02:44.6]} 12. Nbc3 {[%clk 0:02:42.2]}
12... Qc7 {[%clk 0:02:36.5]} 13. Ng3 {[%clk 0:02:38.8]} 13... h6 {[%clk
0:02:33.7]} 14. Rac1 {[%clk 0:02:36.3]} 14... a6 {[%clk 0:02:24]} 15. Qb3 {[%clk
0:02:33.9]} 15... Qb6 {[%clk 0:02:21.7]} 16. Qxb6 {[%clk 0:02:29.5]} 16... Nxb6
{[%clk 0:02:20.2]} 17. Nce4 {[%clk 0:02:28.4]} 17... Nxe4 {[%clk 0:02:18.4]} 18.
Nxe4 {[%clk 0:02:27.9]} 18... Be7 {[%clk 0:02:16.8]} 19. Nc5 {[%clk 0:02:13.6]}
19... Nd5 {[%clk 0:02:13.5]} 20. Rfe1 {[%clk 0:02:07.5]} 20... Bf6 {[%clk
0:02:11.7]} 21. Nb3 {[%clk 0:01:32.7]} 21... Bd7 {[%clk 0:02:02.1]} 22. Bxd5
{[%clk 0:01:27.8]} 22... exd5 {[%clk 0:02:01.4]} 23. Rc7 {[%clk 0:01:27.9]}
23... Bc6 {[%clk 0:01:53.8]} 24. Bb4 {[%clk 0:01:20.5]} 24... Rfe8 {[%clk
0:01:52.3]} 25. Rxe8+ {[%clk 0:01:19.4]} 25... Rxe8 {[%clk 0:01:51.1]} 26. g3
{[%clk 0:01:11]} 26... Re2 {[%clk 0:01:39.8]} 27. Rc8+ {[%clk 0:01:07.8]} 27...
Kh7 {[%clk 0:01:39.1]} 28. Bc3 {[%clk 0:01:02.4]} 28... Bd7 {[%clk 0:00:55.1]}
29. Rc7 {[%clk 0:01:00.7]} 29... Bh3 {[%clk 0:00:52]} 30. f4 {[%clk 0:00:57.6]}
30... Rg2+ {[%clk 0:00:39.7]} 31. Kf1 {[%clk 0:00:55.8]} 31... Rxb2+ {[%clk
0:00:34.2]} 32. Ke1 {[%clk 0:00:55.8]} 32... Rxa2 {[%clk 0:00:26.1]} 33. Rxb7
{[%clk 0:00:53.2]} 33... Kg6 {[%clk 0:00:18.8]} 34. Nc5 {[%clk 0:00:31.1]} 34...
a5 {[%clk 0:00:13.8]} 35. Ra7 {[%clk 0:00:30.2]} 35... Rxh2 {[%clk 0:00:11.4]}
36. Rxa5 {[%clk 0:00:27.8]} 36... Rg2 {[%clk 0:00:07]} 37. Ra7 {[%clk 0:00:22]}
37... Rxg3 {[%clk 0:00:07.2]} 38. Kd2 {[%clk 0:00:22]} 38... Rg2+ {[%clk
0:00:05.2]} 39. Kc1 {[%clk 0:00:20]} 39... Bf5 {[%clk 0:00:05.8]} 40. Bd2 {[%clk
0:00:18.6]} 40... Bxd4 {[%clk 0:00:04.9]} 41. Rc7 {[%clk 0:00:17.4]} 41... Bxc5
{[%clk 0:00:05]} 42. Rxc5 {[%clk 0:00:16.3]} 42... Be4 {[%clk 0:00:05.9]} 43.
Rc6+ {[%clk 0:00:15]} 43... f6 {[%clk 0:00:06.4]} 44. Re6 {[%clk 0:00:14.3]}
44... h5 {[%clk 0:00:06.6]} 45. Kd1 {[%clk 0:00:12.6]} 45... h4 {[%clk 0:00:07]}
46. Ke1 {[%clk 0:00:12.3]} 46... h3 {[%clk 0:00:07.4]} 47. Re7 {[%clk
0:00:12.3]} 47... h2 {[%clk 0:00:07.3]} 0-1

[Event "Early-Titled-Tuesday-Blitz-September-26-2023"]
[Site "Chess.com"]
[Date "2023.09.26"]
[Round "1"]
[White "Makswolf200817"]
[Black "Mr_Lion22"]
[Result "0-1"]
[WhiteElo "2745"]
[BlackElo "2476"]
[TimeControl "180+1"]
[EndTime "8:07:42 PDT"]
[Termination "Mr_Lion22 won by resignation"]

1. d4 {[%clk 0:02:58]} 1... Nf6 {[%clk 0:02:40.6]} 2. c4 {[%clk 0:02:57.7]} 2...
g6 {[%clk 0:02:41.4]} 3. g3 {[%clk 0:02:56.7]} 3... Bg7 {[%clk 0:02:41.3]} 4.
Bg2 {[%clk 0:02:56]} 4... O-O {[%clk 0:02:42.2]} 5. Nc3 {[%clk 0:02:56.2]} 5...
d6 {[%clk 0:02:42]} 6. Nf3 {[%clk 0:02:55.5]} 6... Nbd7 {[%clk 0:02:41.8]} 7.
O-O {[%clk 0:02:54.3]} 7... e5 {[%clk 0:02:40.1]} 8. e4 {[%clk 0:02:54.2]} 8...
Re8 {[%clk 0:02:40.2]} 9. Re1 {[%clk 0:02:53.7]} 9... exd4 {[%clk 0:02:39.4]}
10. Nxd4 {[%clk 0:02:50.6]} 10... Nc5 {[%clk 0:02:39.6]} 11. h3 {[%clk
0:02:46.3]} 11... a5 {[%clk 0:02:38]} 12. Qc2 {[%clk 0:02:35]} 12... Bd7 {[%clk
0:02:38.4]} 13. Be3 {[%clk 0:02:34.2]} 13... Qc8 {[%clk 0:02:38.9]} 14. Kh2
{[%clk 0:02:33.5]} 14... Re5 {[%clk 0:02:39.6]} 15. Nd5 {[%clk 0:02:12.9]} 15...
Nxd5 {[%clk 0:02:26.6]} 16. cxd5 {[%clk 0:02:10.8]} 16... Bxh3 {[%clk
0:01:52.9]} 17. Nf3 {[%clk 0:01:10.8]} 17... Rh5 {[%clk 0:01:50.3]} 18. Rh1
{[%clk 0:01:10.8]} 18... Nxe4 {[%clk 0:01:35.7]} 19. Kg1 {[%clk 0:01:04.9]}
19... Bxg2 {[%clk 0:01:34.3]} 20. Kxg2 {[%clk 0:01:01.5]} 20... Rxh1 {[%clk
0:01:34.9]} 21. Rxh1 {[%clk 0:01:02.4]} 21... Nf6 {[%clk 0:01:30.2]} 22. Ng5
{[%clk 0:00:59.2]} 22... h6 {[%clk 0:01:20.7]} 23. Ne4 {[%clk 0:00:58.6]} 23...
Nxd5 {[%clk 0:00:34.3]} 24. Bxh6 {[%clk 0:00:55.4]} 24... Qg4 {[%clk 0:00:21.4]}
25. f3 {[%clk 0:00:44.1]} 25... Bxh6 {[%clk 0:00:19.3]} 26. Qd1 {[%clk
0:00:28.3]} 26... Ne3+ {[%clk 0:00:19]} 27. Kg1 {[%clk 0:00:21.5]} 27... Nxd1
{[%clk 0:00:12.4]} 28. fxg4 {[%clk 0:00:21.5]} 28... Be3+ {[%clk 0:00:11.4]} 29.
Kg2 {[%clk 0:00:21.4]} 29... Nxb2 {[%clk 0:00:11.9]} 30. Rb1 {[%clk 0:00:20.7]}
30... Nc4 {[%clk 0:00:10.7]} 31. Rxb7 {[%clk 0:00:20.3]} 31... Bb6 {[%clk
0:00:11]} 32. Nf6+ {[%clk 0:00:18.9]} 32... Kg7 {[%clk 0:00:10.9]} 33. Nd5
{[%clk 0:00:19.4]} 33... Re8 {[%clk 0:00:09.5]} 34. g5 {[%clk 0:00:15.3]} 34...
Re5 {[%clk 0:00:08.9]} 35. Nf4 {[%clk 0:00:14]} 35... Rxg5 {[%clk 0:00:08.8]}
36. Kf3 {[%clk 0:00:14.5]} 36... Ne5+ {[%clk 0:00:06.6]} 37. Kg2 {[%clk
0:00:13.7]} 37... Rf5 {[%clk 0:00:07]} 38. a4 {[%clk 0:00:12.5]} 38... Nc6
{[%clk 0:00:05.6]} 39. Nd5 {[%clk 0:00:12.1]} 39... Rxd5 {[%clk 0:00:05.8]} 0-1